[Event "53rd Mongolian Women-ch 2023"]
[Site "Khovd"]
[Date "2023.05.24"]
[Round "5.2"]
[White "Bayasgalan, Khishigbaatar"]
[Black "Enkhsaran, Batsaikhan"]
[Result "1-0"]
[ECO "D48"]
[WhiteElo "1811"]
[BlackElo "1756"]
[Annotator "NA RC COMBH"]
[PlyCount "115"]
[EventDate "2023.05.22"]
[EventType "tourn"]
[EventCountry "MGL"]
[SourceTitle "playchess.com"]
[Source "ChessBase"]
[SourceQuality "1"]
[TimeControl "40/5400+30:1800+30"]

1. d4 {[%emt 0:00:05]} d5 {[%emt 0:00:09]} 2. c4 {[%emt 0:00:08]} c6 {[%emt 0:00:06]} 3. Nf3 {[%emt 0:00:10]} Nf6 {[%emt 0:00:14]} 4. Nc3 {[%emt 0:00:22]} e6 {[%emt 0:00:56]} 5. e3 {[%emt 0:00:24]} Nbd7 {[%emt 0:00:18]} 6. Bd3 {[%emt 0:00:52]} dxc4 {[%emt 0:00:22]} 7. Bxc4 {[%emt 0:00:23]} b5 {[%emt 0:00:10]} 8. Bd3 {[%emt 0:01:03]} a6 {[%emt 0:01:53]} 9. e4 {[%emt 0:03:33]} c5 {[%emt 0:03:16]} 10. d5 {[%emt 0:02:26]} Bb7 {[%emt 0:07:18]} 11. O-O {[%emt 0:07:04]} Qc7 {[%emt 0:03:37]} 12. dxe6 {[%emt 0:04:11]} fxe6 {[%emt 0:00:07]} 13. Ng5 {[%emt 0:00:57]} Qc6 {[%emt 0:00:37]} 14. Re1 {[%emt 0:01:30]} h6 {[%emt 0:04:22]} 15. Nf3 {[%emt 0:00:50]} O-O-O {[%emt 0:00:59]} 16. Be3 {[%emt 0:07:39]} Ng4 {[%emt 0:09:31]} 17. Bf4 {[%emt 0:06:46]} g5 {[%emt 0:02:07]} 18. Bg3 {[%emt 0:00:15]} Bg7 {[%emt 0:02:27]} 19. a4 {[%emt 0:06:44]} c4 {[%emt 0:07:53]} 20. axb5 {[%emt 0:00:29]} axb5 {[%emt 0:00:11]} 21. Nxb5 {[%emt 0:03:30]} Qxb5 {[%emt 0:01:27]} 22. Bxc4 {[%emt 0:00:10]} Qb6 {[%emt 0:06:55]} 23. Qc2 {[%emt 0:01:04]} Nge5 {[%emt 0:15:46]} 24. Bxe6+ {[%emt 0:18:00]} Nc6 {[%emt 0:00:55]} 25. Qd3 {[%emt 0:01:08]} Rhe8 {[%emt 0:06:37]} 26. Bf5 {[%emt 0:01:24]} Nb4 {[%emt 0:05:36]} 27. Qc4+ {[%emt 0:03:33]} Bc6 {[%emt 0:03:23]} 28. Bd6 {[%emt 0:01:22]} Bf8 {[%emt 0:05:21]} 29. Bxb4 {[%emt 0:00:07]} Bxb4 {[%emt 0:02:34]} 30. Ra6 {[%emt 0:00:09]} Qb7 {[%emt 0:01:01]} 31. Rxc6+ {[%emt 0:00:29]} Kb8 {[%emt 0:00:13]} 32. Rc1 {[%emt 0:00:14]} Ba5 {[%emt 0:01:02]} 33. h3 {[%emt 0:01:07]} Bb6 {[%emt 0:02:46]} 34. Rxh6 {[%emt 0:01:47]} Rc8 {[%emt 0:03:18]} 35. Rc6 {[%emt 0:00:11]} Rxc6 {[%emt 0:01:05]} 36. Qxc6 {[%emt 0:00:07]} Qxc6 {[%emt 0:00:14]} 37. Rxc6 {[%emt 0:00:03]} Rd8 {[%emt 0:00:18]} 38. Bxd7 {[%emt 0:00:06]} Bc7 {[%emt 0:00:07]} 39. g3 {[%emt 0:00:26]} Rxd7 {[%emt 0:00:07]} 40. Nxg5 {[%emt 0:00:00]} Kb7 {[%emt 0:00:00]} 41. Rc2 {[%emt 1:00:12]} Rg7 {[%emt 0:01:03]} 42. Ne6 {[%emt 0:00:00]} Rh7 {[%emt 0:00:07]} 43. Rxc7+ {[%emt 0:01:00]} Rxc7 {[%emt 0:00:04]} 44. Nxc7 {[%emt 0:00:00]} Kxc7 {[%emt 0:00:04]} 45. h4 {[%emt 0:00:00]} Kd6 {[%emt 0:00:04]} 46. h5 {[%emt 0:00:00]} Ke5 {[%emt 0:00:06]} 47. b4 {[%emt 0:00:00]} Kxe4 {[%emt 0:00:04]} 48. h6 {[%emt 0:00:00]} Kd5 {[%emt 0:00:06]} 49. h7 {[%emt 0:00:00]} Kc4 {[%emt 0:00:12]} 50. h8=Q {[%emt 0:00:00]} Kxb4 {[%emt 0:00:05]} 51. Qd4+ {[%emt 0:00:00]} Ka3 {[%emt 0:00:09]} 52. Qb6 {[%emt 0:00:00]} Ka2 {[%emt 0:00:07]} 53. Qb4 {[%emt 0:00:00]} Ka1 {[%emt 0:00:03]} 54. Kf1 {[%emt 0:00:00]} Ka2 {[%emt 0:00:08]} 55. Ke2 {[%emt 0:00:00]} Ka1 {[%emt 0:00:06]} 56. Kd1 {[%emt 0:00:00]} Ka2 {[%emt 0:00:09]} 57. Kc2 {[%emt 0:00:00]} Ka1 {[%emt 0:00:06]} 58. Qa3# {[%emt 0:00:00]} 1-0

[Event "53rd Mongolian Women-ch 2023"]
[Site "Khovd"]
[Date "2023.05.24"]
[Round "5.3"]
[White "Amin-Erdene, Bayanmunkh"]
[Black "Mungunzul, Bat-Erdene"]
[Result "1-0"]
[ECO "D11"]
[WhiteElo "1620"]
[BlackElo "2299"]
[Annotator "TA"]
[PlyCount "107"]
[EventDate "2023.05.22"]
[EventType "tourn"]
[EventCountry "MGL"]
[SourceTitle "playchess.com"]
[Source "ChessBase"]
[SourceQuality "1"]
[TimeControl "40/5400+30:1800+30"]

{[%evp 9,107,7,31,15,33,-31,-19,-50,-45,-99,-87,-89,-83,-116,-85,-87,-38,-65,-47,-65,-67,-77,-80,-67,-70,-77,-7,-6,0,0,-6,-2,0,-89,-83,-114,-43,-48,-46,-52,-23,-24,-15,-60,-51,-49,-37,-39,-33,-74,-30,-60,-52,-52,0,0,0,0,0,0,714,0,0,0,1329,1305,1137,0,818,816,733,0,135,31,30,44,52,58,52,48,29980,29981,29981,29982,29989,29990,29990,29991,29991,29992,29992,29993,29993,29994,29994,29995,29996,993,844,844]} 1. d4 {[%emt 0:00:05]} d5 {[%emt 0:00:10]} 2. c4 {[%emt 0:00:18]} c6 {[%emt 0:00:10]} 3. Nf3 {[%emt 0:00:12]} Nf6 {[%emt 0:00:12]} 4. g3 {[%emt 0:00:14]} dxc4 {[%emt 0:00:20]} 5. Bg2 {[%emt 0:00:44]} g6 {[%emt 0:00:39]} 6. O-O {[%emt 0:00:36] D11: Slav Defence: 3 Nf3 sidelines and 3...Nf6 4 e3 Bg4.} Bg7 {[%emt 0:00:45]} 7. Ne5 {[%emt 0:06:05]} (7. Qc2 $14) 7... Ng4 $15 {[%emt 0:01:55]} 8. Nxg4 {[%emt 0:15:28] The position is equal.} Bxg4 {[%emt 0:00:13]} 9. h3 {[%emt 0:00:26]} (9. Be3 $15) 9... Be6 $17 {[%emt 0:02:36]} 10. e3 {[%emt 0:01:30]} O-O {[%emt 0:01:49]} 11. a4 {[%emt 0:02:47] [#]} a5 $146 {[%emt 0:02:02]} ({Predecessor:} 11... Na6 12. Bd2 Qd7 13. Kh2 c5 14. Nc3 cxd4 15. exd4 Nc7 16. Be3 Nd5 17. Ne4 b6 {0-1 Jones,C (2106)-Putnam,L (2182) Charlotte CCCSA Summer IM-C 2021 (5)}) 12. Na3 {[%emt 0:03:24]} Qb6 {[%emt 0:05:58]} ({Better is} 12... Qc8 $17) 13. Qe2 {[%emt 0:09:23]} Qa6 {[%emt 0:08:43]} 14. Bd2 {[%emt 0:05:32]} Nd7 {[%emt 0:03:42]} 15. Rfc1 {[%emt 0:04:05][%cal Ra3c4]} Nb6 {[%emt 0:01:15]} 16. Qd1 {[%emt 0:04:55]} Rfd8 {[%emt 0:17:07]} 17. Bf1 {[%emt 0:01:45]} Qa7 {[%emt 0:01:33]} (17... c5 $17 18. dxc5 Nd7 19. Nxc4 Nxc5) 18. Nxc4 $11 {[%emt 0:09:35]} Bxc4 {[%emt 0:05:08]} 19. Bxc4 {[%emt 0:00:25]} e5 {[%emt 0:00:15]} 20. dxe5 {[%emt 0:15:17]} Bxe5 {[%emt 0:06:48]} 21. Ra2 {[%emt 0:03:44]} (21. Bb3 $11 {remains equal.}) 21... Nxc4 $17 {[%emt 0:03:58]} 22. Rxc4 {[%emt 0:00:23]} Rd5 {[%emt 0:00:08]} ({Black should try} 22... b5 $17 23. Rxc6 b4) 23. Qe2 $15 {[%emt 0:02:41]} Rad8 {[%emt 0:04:40]} 24. Bc3 {[%emt 0:05:15]} Qb8 {[%emt 0:03:42][%cal Oe5g3] White must now prevent ...Bxg3!} 25. Kg2 {[%emt 0:04:16]} Qc7 {[%emt 0:02:14]} 26. b3 {[%emt 0:00:45]} Bxc3 {[%emt 0:02:48]} 27. Rxc3 {[%emt 0:00:01]} Qe5 {[%emt 0:00:09]} 28. Rac2 {[%emt 0:00:52]} Rd1 {[%emt 0:02:10]} 29. Qf3 {[%emt 0:01:16] Prevents Qe4} R8d6 {[%emt 0:01:17]} 30. e4 {[%emt 0:01:29]} Re1 {[%emt 0:06:40]} 31. Re3 $1 {[%emt 0:00:22]} Rb1 {[%emt 0:00:09]} (31... Rxe3 $15 32. Qxe3 Rd4) 32. Rd3 $11 {[%emt 0:00:41]} Rf6 {[%emt 0:01:15]} 33. Qe3 {[%emt 0:00:47]} Qa1 {[%emt 0:02:06]} 34. f4 {[%emt 0:00:08][%cal Bf2f4,Bf4f5][%mdl 32]} Re6 $2 {[%emt 0:01:10][%mdl 8192]} (34... Rh1 $11 35. Rd8+ (35. Qf2 Qb1 $11) 35... Kg7) 35. e5 $2 {[%emt 0:01:05]} (35. Rd8+ $18 Kg7 36. Qc5) 35... Re7 {[%emt 0:02:40]} 36. Rdd2 {[%emt 0:00:35]} Qa3 $2 {[%emt 0:03:20][%mdl 8192]} (36... Rh1 $11 37. Qf2 Qb1) 37. Rd8+ $18 {[%emt 0:00:40]} Kg7 {[%emt 0:00:09]} 38. Rd3 $2 {[%emt 0:00:29]} (38. f5 $1 $18 {[%csl Ge5][%cal Rf5f6]} Rg1+ 39. Qxg1 gxf5 40. Qe3) 38... Qb4 $2 {[%emt 0:00:33][%mdl 8192] [#]} (38... Qa1 $11) 39. f5 $1 {[%emt 0:00:40][%mdl 512] Intending f6+ and mate.} f6 {[%emt 0:01:16]} 40. Rc4 $2 {[%emt 0:00:00]} ({White must play} 40. Rcd2 $1 $18 {exf6+ would kill now.} Rxe5 41. Rd7+ Kg8 42. Rd8+ Kf7 43. R2d7+ {[%mdl 64] Skewer} Qe7 44. fxg6+ hxg6 45. Rxe7+ Rxe7 46. Qd4) 40... Qe1 {[%emt 0:00:00]} (40... Rb2+ $11 41. Kg1 Rb1+ 42. Kh2 Rb2+ 43. Kh1 Rb1+ 44. Kh2 Rb2+ 45. Kh1 Rb1+ 46. Kh2) 41. exf6+ $16 {[%emt 0:07:57]} (41. Qxe1 $6 Rxe1 42. exf6+ Kxf6 $11) 41... Kxf6 {[%emt 0:03:59]} 42. Rd6+ {[%emt 0:00:51]} Kf7 $1 {[%emt 0:00:56]} 43. fxg6+ {[%emt 0:00:51]} hxg6 {[%emt 0:06:16] ( -> ...Qf1+)} 44. Rf4+ {[%emt 0:11:56]} Ke8 $2 {[%emt 0:01:57][%mdl 8192] [#] Black cannot hold the game after this.} (44... Kg7 $14 45. Qd4+ (45. Qxe1 Rbxe1 46. h4 R1e2+ 47. Kh3 R2e6 $11) 45... Qe5) 45. Rf8+ $3 {[%emt 0:05:11][%mdl 576] Decoy} Kxf8 {[%emt 0:00:38]} 46. Qh6+ {[%emt 0:00:21]} Rg7 {[%emt 0:00:21]} 47. Rd8+ {[%emt 0:00:32]} Ke7 {[%emt 0:03:13]} 48. Qg5+ {[%emt 0:00:22]} Ke6 {[%emt 0:00:23] [#]} 49. Qg4+ $1 {[%emt 0:04:45]} ({Less strong is} 49. Re8+ Kf7 50. Rxe1 Rxe1 $14) 49... Ke7 {[%emt 0:01:04] [#]} 50. Qd7+ $1 {[%emt 0:00:17]} Kf6 {[%emt 0:00:12]} 51. Rf8+ {[%emt 0:00:07]} Ke5 {[%emt 0:00:39]} 52. Re8+ {[%emt 0:00:13][%mdl 64] Skewer} Kf6 {[%emt 0:00:30]} 53. Qd4+ {[%emt 0:00:11]} (53. Qd6+ $142 Qe6 54. Qxe6+ Kg5 55. Qg4+ Kh6 56. Qh4#) 53... Kf7 $18 {[%emt 0:00:33]} 54. Rxe1 {[%emt 0:00:06] Beautiful play by Amin-Erdene!   Weighted Error Value: White=0.34/Black=0.40} 1-0

[Event "53rd Mongolian Women-ch 2023"]
[Site "Khovd"]
[Date "2023.05.24"]
[Round "5.4"]
[White "Bayarmaa, Bayarjargal"]
[Black "Udval, Enkhsaikhan"]
[Result "1/2-1/2"]
[ECO "D10"]
[WhiteElo "2167"]
[BlackElo "1682"]
[Annotator "TA"]
[PlyCount "164"]
[EventDate "2023.05.22"]
[EventType "tourn"]
[EventCountry "MGL"]
[SourceTitle "playchess.com"]
[Source "ChessBase"]
[SourceQuality "1"]
[TimeControl "40/5400+30:1800+30"]

{[%evp 18,164,31,31,28,24,30,23,35,0,24,16,43,20,21,15,72,0,0,0,0,0,29,37,42,41,33,39,69,52,56,49,61,45,26,16,38,3,4,0,0,0,0,-10,-23,-16,-14,-15,0,3,20,0,13,12,35,0,0,0,0,0,0,-92,-97,-108,-107,-150,-23,-31,-35,-28,-11,-36,-36,-61,0,0,0,0,0,0,0,0,0,0,0,0,0,0,0,0,0,0,0,0,0,0,0,0,0,0,55,56,54,0,0,0,66,0,22,0,27,0,49,0,16,0,52,0,23,0,0,0,0,0,0,0,0,-191,-182,-157,0,0,0,-8,-8,-10,0,0,0,-8,-8,-8,-8,-8,-8,-8,-8,-8,-8]} 1. d4 {[%emt 0:00:06]} d5 {[%emt 0:00:12]} 2. c4 {[%emt 0:00:08]} c6 {[%emt 0:00:12]} 3. Nc3 {[%emt 0:00:28]} Nf6 {[%emt 0:00:14]} 4. cxd5 {[%emt 0:00:14]} cxd5 {[%emt 0:00:14]} 5. Bf4 {[%emt 0:00:10]} Nc6 {[%emt 0:08:43]} 6. e3 {[%emt 0:00:14]} a6 {[%emt 0:00:34]} 7. Bd3 {[%emt 0:00:29]} e6 {[%emt 0:01:14]} 8. Rc1 {[%emt 0:00:22]} Bd6 {[%emt 0:01:38]} 9. Nge2 {[%emt 0:03:25]} O-O {[%emt 0:06:14]} 10. O-O {[%emt 0:00:17] [#]} Na5 $146 {[%emt 0:05:07] D10: Slav Defence: 3 cxd5 (without early Nf3) and 3 Nc3.} ({Predecessor:} 10... h6 11. Na4 Re8 12. a3 Bxf4 13. Nxf4 Qd6 14. Qd2 e5 15. dxe5 Nxe5 16. Bb1 Bd7 17. Nc5 Bc6 18. Rfd1 {1-0 Samunenkov,I (2473)-Jeet,J (2167) Titled Tuesday intern op 04th Oct Early blitz 2022 (7)}) 11. Qc2 {[%emt 0:14:15]} Bxf4 {[%emt 0:05:38]} 12. Nxf4 {[%emt 0:05:39]} Bd7 {[%emt 0:05:16] White has an edge.} 13. b4 {[%emt 0:10:44]} Nc6 {[%emt 0:04:26]} 14. Qb2 {[%emt 0:02:11]} b5 {[%emt 0:20:21]} 15. Bb1 {[%emt 0:01:58]} Ne8 {[%emt 0:02:42]} 16. e4 {[%emt 0:10:04]} (16. a4 {is more complex.} Qe7 17. Ncxd5 exd5 18. Nxd5 Qd6 19. Nb6) 16... Qf6 {[%emt 0:12:12]} (16... Nd6 $11) 17. Nfe2 {[%emt 0:09:44]} (17. exd5 $16 Nxd4 18. Nd3) 17... Nxd4 $11 {[%emt 0:02:57]} 18. Nxd4 {[%emt 0:00:40]} Qxd4 {[%emt 0:00:05]} 19. Rfd1 {[%emt 0:00:09][%mdl 64] Deflection} Qf6 {[%emt 0:00:48]} 20. exd5 {[%emt 0:00:41]} exd5 {[%emt 0:01:10]} 21. Qc2 {[%emt 0:01:10][%csl Gb1][%cal Rc2h7]} Qh6 {[%emt 0:08:17]} 22. Nxd5 {[%emt 0:01:42]} Bg4 {[%emt 0:02:19]} 23. Rd4 {[%emt 0:15:43]} Be6 {[%emt 0:01:03]} 24. Ne7+ {[%emt 0:01:26]} Kh8 {[%emt 0:00:05]} 25. g3 {[%emt 0:03:15] White is more active.} g6 $1 {[%emt 0:03:54]} 26. Re1 {[%emt 0:02:21]} Qg5 {[%emt 0:01:52] Wards off Rh4} 27. Qe4 {[%emt 0:08:56]} (27. Nc6 $5) 27... Ng7 {[%emt 0:01:28]} 28. Nc6 {[%emt 0:01:35]} Rae8 {[%emt 0:02:09]} 29. h4 {[%emt 0:03:02]} Qf6 {[%emt 0:01:04] Hoping for ...Bf5.} 30. Qe5 {[%emt 0:00:31] [#]} Bd5 $1 {[%emt 0:02:41][%mdl 64] Discovered Attack} 31. Ne7 {[%emt 0:00:51]} (31. Qxf6 $2 {is a self mate.} Rxe1+ 32. Kh2 Rh1#) 31... Qxe5 {[%emt 0:00:09]} 32. Rxe5 {[%emt 0:00:05]} Be6 {[%emt 0:00:13]} 33. Nc6 {[%emt 0:01:06] Black is weak on the dark squares} Bc4 {[%emt 0:01:12]} 34. Kh2 {[%emt 0:02:19]} Ne6 {[%emt 0:00:23]} 35. Rd6 {[%emt 0:00:58]} Rc8 {[%emt 0:00:35]} 36. Na5 {[%emt 0:00:39]} Rfd8 {[%emt 0:00:29]} 37. Nb7 {[%emt 0:00:47]} Rxd6 {[%emt 0:00:08]} 38. Nxd6 {[%emt 0:00:04]} Rc7 {[%emt 0:00:15]} 39. Ne4 {[%emt 0:00:58]} (39. Re3 $11 {remains equal.}) 39... Rd7 $17 {[%emt 0:00:28]} 40. a3 {[%emt 0:00:00]} Kg7 {[%emt 0:00:00]} 41. Nc3 {[%emt 0:01:29] [#]} h5 {[%emt 0:07:15]} (41... Rd2 $1 $17 {[%cal Rd2f2]} 42. Kg2 Rb2) 42. Kg2 {[%emt 0:02:55]} Rd2 {[%emt 0:01:05]} 43. Re1 $1 {[%emt 0:08:19]} f5 {[%emt 0:03:36]} 44. Rd1 {[%emt 0:02:29]} (44. Rc1 $5) 44... Rb2 {[%emt 0:06:49] White must now prevent ...Rb3.} 45. Bd3 {[%emt 0:09:08]} Bxd3 {[%emt 0:04:03]} ({Black should try} 45... Bb3 $1 $15 46. Re1 Rd2) 46. Rxd3 $15 {[%emt 0:00:06][%mdl 4096] Endgame KRN-KRN} Rb3 {[%emt 0:00:35][%cal Oe6d4]} 47. Rd7+ {[%emt 0:00:28]} Kf8 {[%emt 0:00:14]} 48. Nd5 {[%emt 0:01:38]} Rxa3 {[%emt 0:01:12]} 49. Rd6 {[%emt 0:00:40]} Kf7 {[%emt 0:00:23]} 50. Rd7+ {[%emt 0:01:01]} Kf8 {[%emt 0:00:05]} 51. Rd6 {[%emt 0:01:13]} Kf7 {[%emt 0:00:04]} 52. Rd7+ {[%emt 0:00:25]} Kf8 {[%emt 0:00:06]} 53. Ra7 {[%emt 0:00:17]} Ra4 {[%emt 0:05:28]} 54. Ne7 {[%emt 0:01:11]} Kf7 {[%emt 0:01:33]} 55. Nxf5+ {[%emt 0:00:31]} Kf6 {[%emt 0:00:08]} 56. Ne3 {[%emt 0:00:22]} Ke5 {[%emt 0:00:46]} 57. Ra8 {[%emt 0:01:53]} Rxb4 {[%emt 0:00:37]} 58. Rxa6 {[%emt 0:00:09]} Nf8 {[%emt 0:04:59]} ({Better is} 58... Rb2 $11) 59. Rb6 $14 {[%emt 0:01:34]} Rb3 {[%emt 0:00:20]} 60. Rb8 {[%emt 0:01:21]} Ne6 {[%emt 0:00:55]} 61. Rb6 {[%emt 0:00:49]} Nf8 {[%emt 0:00:06]} 62. Kf3 {[%emt 0:00:31]} (62. Nc2 $1 $14) 62... b4 {[%emt 0:01:05]} 63. Ke2 {[%emt 0:02:51]} Rb2+ {[%emt 0:00:16]} 64. Kf3 {[%emt 0:00:30] Nc4+ would be deadly.} (64. Kf1 $5 {[%cal Re3c4]} Rb1+ 65. Ke2 $14) 64... Rb3 {[%emt 0:00:12]} 65. Ke2 {[%emt 0:00:48]} Rb2+ {[%emt 0:00:05]} 66. Kf3 {[%emt 0:00:07]} (66. Kf1 $5 {[%cal Re3c4]} Ke4 67. Nc4 Rb1+ 68. Ke2 $14) 66... Rb3 {[%emt 0:00:18]} 67. g4 {[%emt 0:00:37]} (67. Kg2 $1 $14) 67... Rb1 {[%emt 0:01:36]} 68. g5 {[%emt 0:00:27]} Ne6 {[%emt 0:00:47]} 69. Nc4+ {[%emt 0:00:32]} Kd5 {[%emt 0:01:02]} 70. Ne3+ {[%emt 0:00:06]} Ke5 {[%emt 0:00:04]} 71. Nc4+ {[%emt 0:00:16]} Kd5 {[%emt 0:00:02] And now ...Nd4+ would win.} 72. Nd2 $2 {[%emt 0:00:26] [#]} (72. Ne3+ $11 {and White is okay.} Ke5) 72... Nd4+ $1 $19 {[%emt 0:00:51]} 73. Ke3 {[%emt 0:00:36]} Nf5+ $2 {[%emt 0:01:07]} (73... Rc1 $17 {( -> ...Rc3+)} 74. f3 Rc6) 74. Kd3 $11 {[%emt 0:00:33] The position is equal.} Rh1 {[%emt 0:00:31]} 75. Rxg6 {[%emt 0:01:12]} Rxh4 {[%emt 0:00:19]} 76. Rf6 {[%emt 0:00:14]} Nd6 {[%emt 0:00:26] Threatens to win with ...Rd4+.} 77. Kc2 {[%emt 0:01:04]} (77. Nf3 $5 Rg4 $8 78. Rh6 $11) 77... Rg4 {[%emt 0:00:41]} 78. f3 {[%emt 0:00:17]} Rg2 {[%emt 0:00:28] aiming for ...Nc4.} 79. Kd3 {[%emt 0:00:22] Repels Nc4} Rxg5 {[%emt 0:00:33]} 80. Rxd6+ $1 {[%mdl 64] Remove Defender, Decoy} Kxd6 {[%emt 0:00:01]} 81. Ne4+ {[%emt 0:01:09]} Ke5 {[%emt 0:00:01]} 82. Nxg5 {[%emt 0:00:07] Nh3 is the strong threat.} Kf4 {[%emt 0:02:05] Weighted Error Value: White=0.13 (very precise) /Black=0.14 (very precise)} 1/2-1/2

[Event "53rd Mongolian Women-ch 2023"]
[Site "Khovd"]
[Date "2023.05.24"]
[Round "5.5"]
[White "Enkhbolor Nyamdavaa"]
[Black "Margadgua Erdenebayar"]
[Result "1/2-1/2"]
[ECO "B28"]
[WhiteElo "1699"]
[BlackElo "1934"]
[Annotator "TA"]
[PlyCount "86"]
[EventDate "2023.05.22"]
[EventType "tourn"]
[EventCountry "MGL"]
[SourceTitle "playchess.com"]
[Source "ChessBase"]
[SourceQuality "1"]
[TimeControl "40/5400+30:1800+30"]

{[%evp 12,86,0,3,0,-14,35,-11,-16,-16,-8,-7,-10,-24,-14,-30,-25,-29,-29,-45,-36,-41,-30,-37,-39,-71,-39,-93,-102,-106,-115,-104,-79,-172,-53,-61,-58,-99,-85,-129,-126,-232,-232,-232,-232,-227,-224,-581,-310,-310,-310,-310,-310,-304,-304,-282,-3,-3,-2,-85,0,-37,-31,-27,0,0,0,0,0,0,0,0,0,-8,0,0,0]} 1. e4 {[%emt 0:00:02]} c5 {[%emt 0:00:12]} 2. Nf3 {[%emt 0:00:05]} a6 {[%emt 0:00:12]} 3. d4 {[%emt 0:00:43]} cxd4 {[%emt 0:00:57]} 4. Nxd4 {[%emt 0:00:06]} Nf6 {[%emt 0:00:07]} 5. Nc3 {[%emt 0:00:46]} e5 {[%emt 0:00:11]} 6. Nde2 {[%emt 0:06:17]} Bc5 {[%emt 0:01:32]} 7. Ng3 {[%emt 0:03:12]} d6 {[%emt 0:07:17] B28: Sicilian: 2 Nf3 a6 (O'Kelly Variation).} 8. Be2 {[%emt 0:02:28] Against Ng4} h6 {[%emt 0:01:41] [#]} (8... O-O $11) 9. Nh5 $146 {[%emt 0:06:49]} (9. Be3 $14) ({Predecessor:} 9. O-O Nc6 10. Kh1 Be6 11. f4 Nd4 12. f5 Bd7 13. Nh5 Nxe2 14. Qxe2 Nxh5 15. Qxh5 {½-½ Lysak,I (2339)-Kislinsky,A (2451) Yuzhny op 2009 (3)}) 9... Nxh5 $11 {[%emt 0:08:57]} 10. Bxh5 {[%emt 0:00:06]} O-O {[%emt 0:01:13]} 11. O-O {[%emt 0:03:21]} Be6 {[%emt 0:04:39]} 12. Qd3 {[%emt 0:07:47]} Qh4 {[%emt 0:04:54]} (12... Nc6 {simplifies} 13. Be3 Rc8 14. Bxc5 dxc5 15. Qg3 Kh7) 13. Bf3 {[%emt 0:02:12]} Nc6 {[%emt 0:00:57]} 14. Be3 {[%emt 0:19:19]} Nd4 {[%emt 0:10:02] Hoping for ...Nxf3+.} 15. Bxd4 {[%emt 0:02:00]} Bxd4 {[%emt 0:00:28]} 16. Ne2 {[%emt 0:02:31]} Bc5 {[%emt 0:06:56]} (16... Bxb2 17. Rab1 Bd4 18. Nxd4 (18. Rxb7 Ra7 $15) 18... exd4 19. Rxb7 $11) 17. a4 {[%emt 0:41:16]} Rac8 {[%emt 0:01:53][%cal Oe6c4]} 18. b3 {[%emt 0:00:00] Wards off Bc4} Kh8 {[%emt 0:06:18]} (18... f5 {simplifies} 19. g3 Qe7 20. c4 Qf7) 19. Qd2 {[%emt 0:00:00]} (19. Rad1 $15) 19... f5 $17 {[%emt 0:08:37]} 20. exf5 {[%emt 0:00:00]} Rxf5 {[%emt 0:00:57] White must now prevent ...e4.} 21. Ng3 {[%emt 0:00:00] White is weak on the dark squares} Rf4 {[%emt 0:04:30] ...Rcf8 is the strong threat.} (21... Rf7 $6 22. Bd5 Bxd5 23. Qxd5 $11) 22. Qe2 {[%emt 0:00:00]} (22. Qd3 $17) 22... Bd4 {[%emt 0:04:37]} (22... Rcf8 $19 {[%cal Of4f3] ...Rxf3! would be deadly.} 23. Ne4 Rxf3 24. gxf3 Bd5) 23. Rad1 $15 {[%emt 0:00:00][%cal Od1d4]} Rcf8 {[%emt 0:00:21]} 24. Ne4 {[%emt 0:00:00]} Qe7 $36 {[%emt 0:08:11][%mdl 2048] Black is on the roll.} (24... Rxf3 {keeps more tension.} 25. gxf3 Rf4 26. Rd3 Qh3) 25. c3 {[%emt 0:00:00] [#]} Ba7 {[%emt 0:09:39] A strong pair of Bishops.} 26. Rxd6 {[%emt 0:00:39] [#]} (26. c4 $17 {is a better defense.}) 26... Bf5 $1 $19 {[%emt 0:02:09]} (26... Bxb3 27. Qd3) (26... Rxe4 27. Rxe6 Qxe6 28. Qxe4 $14) 27. Rd2 {[%emt 0:00:54]} Bxe4 {[%emt 0:05:25]} 28. Bxe4 {[%emt 0:00:06]} Qg5 {[%emt 0:00:22]} 29. h4 $2 {[%emt 0:03:47]} ({But not} 29. Bxb7 Rxf2 30. Qxf2 Bxf2+ 31. Rdxf2 Rxf2 32. Rxf2 Qc1+ 33. Rf1 Qxc3 34. Bxa6 Qe3+ 35. Kh1 Qxb3) (29. Rdd1 Qh4 30. Bb1 (30. Bxb7 $2 Rxf2 $19) 30... Bxf2+ 31. Rxf2 Rxf2 32. Qe4 Qxe4 33. Bxe4) 29... Qxh4 {[%emt 0:00:17]} ({Less strong is} 29... Bxf2+ 30. Rxf2 Qe7 31. Rxf4 exf4 32. Rd4 $18) 30. Bxb7 {[%emt 0:00:30]} e4 {[%emt 0:01:19]} (30... Rxf2 $2 {too greedy.} 31. Rxf2 Bxf2+ 32. Qxf2 Rxf2 33. Rxf2 $19) 31. Rd4 {[%emt 0:00:31]} Bxd4 {[%emt 0:00:31]} 32. cxd4 {[%emt 0:00:01][%cal Og2g3]} R8f5 {[%emt 0:00:35] aiming for ...Rh5.} 33. g3 {[%emt 0:00:48]} Qg5 {[%emt 0:00:22]} ({Better is} 33... Rg4 $19 {( -> ...Rh5)} 34. Qxe4 Rxe4 35. gxh4 Rg4+ 36. Bg2 Rf6) 34. Bxe4 $11 {[%emt 0:00:26]} Rf8 {[%emt 0:00:04] Threatens to win with ...Re8.} 35. Kh1 {[%emt 0:00:39]} (35. Bd3 $11 {keeps the balance.}) 35... Rg4 {[%emt 0:01:02]} ({Black should play} 35... Qg4 $17 36. Qxg4 Rxg4) 36. Bg2 {[%emt 0:00:34]} (36. Qd3 $5 {[%cal Rf2f4]}) 36... Rxd4 {[%emt 0:00:29]} 37. Qxa6 {[%emt 0:00:04]} Rd2 {[%emt 0:00:23]} (37... h5 $5 {[%cal Rg5g4]}) 38. Qb6 {[%emt 0:00:45] The position is equal.} Qh5+ {[%emt 0:00:43]} 39. Kg1 {[%emt 0:00:06]} Ra2 {[%emt 0:00:12]} 40. Qd6 {[%emt 0:00:00]} Qf5 {[%emt 0:00:00][%cal Ra2f2]} 41. Be4 {[%emt 0:03:58][%mdl 64] Deflection} Qf7 {[%emt 0:03:17][%cal Ra2f2]} 42. Bd5 {[%emt 0:00:39]} Qe8 {[%emt 0:03:24][%cal Oa2f2]} 43. Bc6 {[%emt 0:03:59]} Qf7 {[%emt 0:26:08][%csl LRb3,LRf2] Whites escaped into a draw.   Weighted Error Value: White=0.30/Black=0.27 (precise)} 1/2-1/2